bitfinex/quotes_BTCUSD_20230101
["timestamp","ask_amount","ask_price","bid_price","bid_amount"]
[1672601716333,3.12756172,16634.0,16633.0,0.74980669]
[1672601716562,2.50716172,16634.0,16633.0,0.74980669]
[1672601716814,3.12756172,16634.0,16633.0,0.74980669]
[1672601719085,3.50043389,16634.0,16633.0,0.74980669]
[1672601719301,2.88003389,16634.0,16633.0,0.74980669]
[1672601719519,3.50043389,16634.0,16633.0,0.74980669]
[1672601719977,2.88003389,16634.0,16633.0,0.04980669]
[1672601720222,3.50043389,16634.0,16633.0,0.04980669]
[1672601721320,3.53039846,16634.0,16633.0,0.74980669]
[1672601721560,3.15752629,16634.0,16633.0,0.74980669]
[1672601721779,2.53712629,16634.0,16633.0,0.74980669]
[1672601721989,3.15752629,16634.0,16633.0,0.74980669]
[1672601722210,2.53712629,16634.0,16633.0,0.74980669]
[1672601722425,3.15752629,16634.0,16633.0,0.74980669]
[1672601725372,2.53712629,16634.0,16633.0,0.74980669]
[1672601725614,3.15752629,16634.0,16633.0,0.74980669]
[1672601727133,3.15752629,16634.0,16633.0,0.04980669]
[1672601728109,3.15752629,16634.0,16633.0,0.74980669]
[1672601729340,2.53712629,16634.0,16633.0,0.74980669]
[1672601729597,3.15752629,16634.0,16633.0,0.74980669]
[1672601729814,2.53712629,16634.0,16633.0,0.74980669]
[1672601730056,3.15752629,16634.0,16633.0,0.74969579]
[1672601732538,2.53712629,16634.0,16633.0,0.74969579]
[1672601732792,3.15752629,16634.0,16633.0,0.74969579]
[1672601733284,2.69184629,16634.0,16633.0,0.74969579]
[1672601734322,2.53712629,16634.0,16633.0,0.04969579]
[1672601734573,3.15752629,16634.0,16633.0,0.04969579]
[1672601734847,2.53712629,16634.0,16633.0,0.04969579]
[1672601735096,3.15752629,16634.0,16633.0,0.74969579]
[1672601736942,3.53339492,16634.0,16633.0,0.74969579]
[1672601737717,3.06771492,16634.0,16633.0,0.74969579]
[1672601740059,2.69184629,16634.0,16633.0,0.74969579]
[1672601741062,2.69184629,16634.0,16633.0,0.04969579]
[1672601742045,2.69184629,16634.0,16633.0,0.74969579]
[1672601742542,1.61836656,16634.0,16633.0,0.74969579]
[1672601749757,1.61836656,16634.0,16633.0,0.04969579]
[1672601750763,1.61836656,16634.0,16633.0,0.74969579]
[1672601751993,1.61836656,16634.0,16633.0,0.74962278]
[1672601754902,2.23876656,16634.0,16633.0,0.74962278]
[1672601755410,1.61836656,16634.0,16633.0,0.74962278]
[1672601756757,1.61836656,16634.0,16633.0,0.04962278]
[1672601757776,1.61836656,16634.0,16633.0,0.74962278]
[1672601762278,1.64900836,16634.0,16633.0,0.74962278]
[1672601763766,1.64900836,16634.0,16633.0,0.04962278]
[1672601763988,2.26940836,16634.0,16633.0,0.04962278]
[1672601764758,2.26940836,16634.0,16633.0,0.74962278]
[1672601765005,2.53780352,16634.0,16633.0,0.74962278]
[1672601765259,1.64900836,16634.0,16633.0,0.74962278]
[1672601765749,1.61836656,16634.0,16633.0,0.74962278]
[1672601770779,1.61836656,16634.0,16633.0,0.04962278]
[1672601771033,2.23876656,16634.0,16633.0,0.04962278]
[1672601771554,1.61836656,16634.0,16633.0,0.04962278]
[1672601771797,1.61836656,16634.0,16633.0,0.74962278]
[1672601772785,1.61836656,16634.0,16633.0,0.74950985]
[1672601777782,1.61836656,16634.0,16633.0,0.04950985]
[1672601778000,2.23876656,16634.0,16633.0,0.04950985]
[1672601778245,1.61836656,16634.0,16633.0,0.04950985]
[1672601778978,1.61836656,16634.0,16633.0,0.74950985]
[1672601784912,1.61836656,16634.0,16633.0,0.04950985]
[1672601785960,1.61836656,16634.0,16633.0,0.74950985]
[1672601786848,1.61830249,16634.0,16633.0,0.74950985]
[1672601788538,1.61830249,16634.0,16633.0,1.36990985]
[1672601788800,1.61830249,16634.0,16633.0,0.74950985]
[1672601791838,2.50709765,16634.0,16633.0,0.04950985]
[1672601792086,3.12749765,16634.0,16633.0,0.04950985]
[1672601792330,2.50709765,16634.0,16633.0,0.04950985]
[1672601792591,3.12749765,16634.0,16633.0,0.04950985]
[1672601792842,1.77302249,16634.0,16633.0,0.74950985]
[1672601793102,1.61830249,16634.0,16633.0,0.74950985]
[1672601795354,2.50709765,16634.0,16633.0,0.74950985]
[1672601796610,3.12749765,16634.0,16633.0,0.74950985]
[1672601796852,3.50036342,16634.0,16633.0,0.74950985]
[1672601797092,2.87996342,16634.0,16633.0,0.74950985]
[1672601797340,3.12749765,16634.0,16633.0,0.74950985]
[1672601797589,2.50709765,16634.0,16633.0,0.74950985]
[1672601797829,3.12749765,16634.0,16633.0,0.74950985]
[1672601798083,2.66181765,16634.0,16633.0,0.74950985]
[1672601798822,2.50709765,16634.0,16633.0,0.04950985]
[1672601799062,3.12749765,16634.0,16633.0,0.04950985]
[1672601799788,3.12749765,16634.0,16633.0,0.74950985]
[1672601800032,2.66181765,16634.0,16633.0,0.74950985]
[1672601800300,2.50709765,16634.0,16633.0,0.74950985]
[1672601800565,3.12749765,16634.0,16633.0,0.74950985]
[1672601800798,2.69150246,16634.0,16633.0,0.74950985]
[1672601805812,2.69150246,16634.0,16633.0,0.04950985]
[1672601806505,2.69150246,16634.0,16633.0,0.74950985]
[1672601806722,2.53678246,16634.0,16633.0,0.74950985]
[1672601807837,3.47097671,16634.0,16633.0,0.74950985]
[1672601808566,3.15718246,16634.0,16633.0,0.74950985]
[1672601808809,2.53678246,16634.0,16633.0,0.74950985]
[1672601809756,1.6479873,16634.0,16633.0,0.74950985]
[1672601810968,1.6479873,16634.0,16633.0,0.74944936]
[1672601815417,1.6479873,16634.0,16633.0,0.04944936]
[1672601815632,2.2683873,16634.0,16633.0,0.04944936]
[1672601815852,2.2683873,16634.0,16633.0,0.74944936]
[1672601816072,1.6479873,16634.0,16633.0,0.74944936]
[1672601816764,2.53678246,16634.0,16633.0,0.74944936]
[1672601816965,3.15718246,16634.0,16633.0,0.74944936]
[1672601817393,3.53301671,16634.0,16633.0,0.74944936]
[1672601832835,3.53301671,16634.0,16633.0,0.04944936]
[1672601833303,3.53301671,16634.0,16633.0,0.04937086]
[1672601833845,3.53301671,16634.0,16633.0,0.74937086]
[1672601834542,3.15718246,16634.0,16633.0,0.74937086]
[1672601835492,2.2683873,16634.0,16633.0,0.74937086]
[1672601835789,1.6479873,16634.0,16633.0,0.74937086]
[1672601836523,2.2683873,16634.0,16633.0,0.74937086]
[1672601838246,1.6479873,16634.0,16633.0,0.74937086]
[1672601840523,1.61830249,16634.0,16633.0,0.74937086]
[1672601840758,1.01712449,16634.0,16633.0,0.74937086]
[1672601848104,1.01712449,16634.0,16633.0,0.04937086]
[1672601849200,1.01712449,16634.0,16633.0,0.74937086]
[1672601857136,1.01712449,16634.0,16633.0,0.72351285]
[1672601860201,0.62478075,16634.0,16633.0,1.7534491]
[1672601860462,0.016,16634.0,16633.0,3.54530117]
[1672601860702,0.55707634,16634.0,16633.0,3.54530117]
[1672601860961,0.016,16634.0,16633.0,3.54530117]
[1672601861693,0.46661549,16634.0,16633.0,3.54530117]
[1672601861946,0.46661822,16634.0,16633.0,3.54530117]
[1672601862215,0.46661822,16634.0,16633.0,3.84530117]
[1672601862455,0.46661822,16634.0,16633.0,3.54530117]
[1672601862689,0.46661822,16634.0,16633.0,3.84530117]
[1672601862941,0.82691692,16634.0,16633.0,3.84530117]
[1672601863190,0.82691692,16634.0,16633.0,4.14590117]
[1672601865178,1.0970364,16634.0,16633.0,4.14590117]
[1672601865435,0.82691692,16634.0,16633.0,4.14590117]
[1672601865892,0.82691692,16634.0,16633.0,3.84530117]
[1672601866148,0.82691692,16634.0,16633.0,3.54530117]
[1672601868685,0.82691692,16634.0,16633.0,2.84530117]
[1672601869699,0.82691692,16634.0,16633.0,3.54530117]
[1672601879489,0.82691692,16634.0,16633.0,3.54519721]
[1672601881242,0.82691692,16634.0,16633.0,2.84519721]
[1672601881991,1.09699919,16634.0,16633.0,2.84519721]
[1672601882212,1.09699919,16634.0,16633.0,3.54519721]
[1672601882477,0.82691692,16634.0,16633.0,3.54519721]
[1672601884898,1.09702927,16634.0,16633.0,3.54519721]
[1672601885149,0.64641105,16634.0,16633.0,3.84519721]
[1672601888297,0.64641105,16634.0,16633.0,3.14519721]
[1672601888542,0.64634122,16634.0,16633.0,3.14519721]
[1672601889253,0.64634122,16634.0,16633.0,3.84519721]
[1672601890748,1.09695944,16634.0,16633.0,3.84519721]
[1672601891500,0.82684709,16634.0,16633.0,3.84519721]
[1672601894560,0.46654839,16634.0,16633.0,3.84519721]
[1672601894806,0.46654839,16634.0,16633.0,3.28969233]
[1672601895073,0.46653695,16634.0,16633.0,3.82979107]
[1672601895818,0.82703702,16634.0,16633.0,3.82979107]
[1672601896357,0.63086485,16634.0,16633.0,3.82979107]
[1672601896613,1.08248307,16634.0,16633.0,3.95679107]
[1672601896859,0.63086485,16634.0,16633.0,3.82979107]
[1672601897118,1.08348307,16634.0,16633.0,3.95479107]
[1672601897504,0.81311829,16634.0,16633.0,3.95479107]
[1672601898783,0.45261822,16634.0,16633.0,3.95479107]
[1672601902682,0.45261822,16634.0,16633.0,3.25479107]
[1672601903181,0.45261822,16634.0,16633.0,3.55539107]
[1672601903644,0.45261822,16634.0,16633.0,4.25539107]
[1672601904258,0.45261822,16634.0,16633.0,3.93652012]
[1672601907793,0.002,16634.0,16633.0,3.93652012]
[1672601909719,0.002,16634.0,16633.0,3.23652012]
[1672601910659,0.002,16634.0,16633.0,3.93652012]
[1672601910902,0.002,16634.0,16633.0,3.93643739]
[1672601914879,0.002,16634.0,16633.0,3.01603739]
[1672601916651,0.002,16634.0,16633.0,2.31603739]
[1672601917792,0.002,16634.0,16633.0,3.01603739]
[1672601918033,0.002,16634.0,16633.0,3.63643739]
[1672601918791,0.54307634,16634.0,16633.0,3.63643739]
[1672601920000,0.002,16634.0,16633.0,3.63643739]
[1672601922675,0.54307634,16634.0,16633.0,3.63643739]
[1672601923700,0.54307634,16634.0,16633.0,2.93643739]
[1672601923951,0.54307634,16634.0,16633.0,2.31603739]
[1672601924740,0.54307634,16634.0,16633.0,3.01603739]
[1672601927240,0.54307634,16634.0,16633.0,1.45804016]
[1672601927488,0.54307634,16634.0,16633.0,2.027428]
[1672601928985,0.54307634,16634.0,16633.0,2.47088344]
[1672601929228,0.54307634,16634.0,16633.0,2.027428]
[1672601930214,0.54307634,16634.0,16633.0,2.47088344]
[1672601930458,0.54307634,16634.0,16633.0,2.647828]
[1672601930676,0.54307634,16634.0,16633.0,3.09128344]
[1672601930889,0.54307634,16634.0,16633.0,2.647828]
[1672601931131,0.54307634,16634.0,16633.0,3.09128344]
[1672601931598,0.54307634,16634.0,16633.0,3.55662656]
[1672601932167,0.54307634,16634.0,16633.0,3.55651456]
[1672601933436,0.54307634,16634.0,16633.0,2.85651456]
[1672601934410,0.54307634,16634.0,16633.0,3.55651456]
[1672601938345,0.002,16634.0,16633.0,3.55651456]
[1672601940469,0.54307634,16634.0,16633.0,3.55651456]
[1672601940704,0.002,16634.0,16633.0,3.55651456]
[1672601941471,0.002,16634.0,16633.0,3.6280943]
[1672601942671,0.54307634,16634.0,16633.0,3.6280943]
[1672601944131,0.54307634,16634.0,16633.0,2.9280943]
[1672601944358,0.54307634,16634.0,16633.0,2.3076943]
[1672601945323,0.54307634,16634.0,16633.0,3.0076943]
[1672601945552,0.54307634,16634.0,16633.0,3.6280943]
[1672601951371,0.54307634,16634.0,16633.0,2.9280943]
[1672601951630,0.54307634,16634.0,16633.0,2.3076943]
[1672601952370,0.54307634,16634.0,16633.0,2.56423886]
[1672601955985,0.54307634,16634.0,16633.0,1.96302486]
[1672601956232,0.54307634,16634.0,16633.0,1.96294794]
[1672601958326,0.54307634,16634.0,16633.0,1.70640338]
[1672601958839,0.54307634,16634.0,16633.0,1.26294794]
[1672601959087,0.54307634,16634.0,16633.0,1.96294794]
[1672601959326,0.54307634,16634.0,16633.0,2.58334794]
[1672601959561,0.54307634,16634.0,16633.0,3.02680338]
[1672601959804,0.54307634,16634.0,16633.0,2.58334794]
[1672601961557,0.54307634,16634.0,16633.0,2.58353686]
[1672601962290,0.002,16634.0,16633.0,2.58353686]
[1672601963777,0.54357117,16634.0,16633.0,2.58353686]
[1672601964014,0.54357117,16634.0,16633.0,3.0269923]
[1672601964973,0.54357117,16634.0,16633.0,2.3269923]
[1672601965248,0.54357117,16634.0,16633.0,1.88353686]
[1672601965985,0.54357117,16634.0,16633.0,3.0269923]
[1672601966238,0.54357117,16634.0,16633.0,2.58353686]
[1672601966981,0.54357117,16634.0,16633.0,3.0269923]
[1672601968472,0.54357117,16634.0,16633.0,2.58353686]
[1672601970492,0.002,16634.0,16633.0,2.58353686]
[1672601971942,0.002,16634.0,16633.0,1.88353686]
[1672601972199,0.002,16634.0,16633.0,1.26313686]
[1672601973177,0.002,16634.0,16633.0,1.96313686]
[1672601973432,0.54354629,16634.0,16633.0,2.58353686]
[1672601974794,0.54354629,16634.0,16633.0,1.96313686]
[1672601977663,0.002,16634.0,16633.0,1.9630689]
[1672601977979,0.002,16634.0,16633.0,2.5834689]
[1672601978452,0.54352492,16634.0,16633.0,2.5834689]
[1672601979186,0.54352492,16634.0,16633.0,1.8834689]
[1672601979664,0.54352492,16634.0,16633.0,1.2630689]
[1672601980197,0.54352492,16634.0,16633.0,1.9630689]
[1672601980449,0.54352492,16634.0,16633.0,2.5834689]
[1672601980695,0.002,16634.0,16633.0,2.5834689]
[1672601981048,0.54355763,16634.0,16633.0,2.5834689]
[1672601982567,0.002,16634.0,16633.0,2.5834689]
[1672601985816,0.002,16634.0,16633.0,3.02692434]
[1672601986116,0.54360199,16634.0,16633.0,3.02692434]
[1672601986875,0.002,16634.0,16633.0,3.02692434]
[1672601988443,0.002,16634.0,16633.0,2.5834689]
[1672601989179,0.002,16634.0,16633.0,3.02692434]
[1672601989667,0.002,16634.0,16633.0,2.5834689]
[1672601991697,0.002,16634.0,16633.0,3.02692434]
[1672601991927,0.002,16634.0,16633.0,2.32692434]
[1672601992187,0.002,16634.0,16633.0,1.8834689]
[1672601992440,0.002,16634.0,16633.0,1.2630689]
[1672601993185,0.002,16634.0,16633.0,1.9630689]
[1672601993444,0.002,16634.0,16633.0,2.5834689]
[1672601997578,0.002,16634.0,16633.0,3.02692434]
[1672601998831,0.54372583,16634.0,16633.0,3.02692434]
[1672601999075,0.54372583,16634.0,16633.0,2.32692434]
[1672601999578,0.54372583,16634.0,16633.0,3.02692434]
[1672602000108,0.54372583,16634.0,16633.0,3.02682668]
[1672602002380,0.54372583,16634.0,16633.0,3.62804068]
[1672602003673,0.002,16634.0,16633.0,3.92804068]
[1672602004125,0.54372583,16634.0,16633.0,3.62804068]
[1672602004775,0.002,16634.0,16633.0,3.62804068]
[1672602005022,0.54372583,16634.0,16633.0,3.62804068]
[1672602005257,0.002,16634.0,16633.0,3.62804068]
[1672602005503,0.54372583,16634.0,16633.0,3.62804068]
[1672602005755,0.002,16634.0,16633.0,3.62804068]
[1672602009065,0.002,16634.0,16633.0,2.92804068]
[1672602009310,0.002,16634.0,16633.0,3.22804068]
[1672602009788,0.002,16634.0,16633.0,2.60764068]
[1672602010044,0.002,16634.0,16633.0,3.30764068]
[1672602010288,0.002,16634.0,16633.0,3.92804068]
[1672602010529,0.81401441,16634.0,16633.0,3.46269756]
[1672602010777,0.81401441,16634.0,16633.0,3.96995821]
[1672602012280,0.81401441,16634.0,16633.0,4.27054821]
[1672602013623,0.81401441,16634.0,16633.0,4.27055821]
[1672602013875,0.63344376,16634.0,16633.0,4.27055821]
[1672602014407,1.08456322,16634.0,16633.0,4.27055821]
[1672602014663,0.63344376,16634.0,16633.0,4.27055821]
[1672602016329,0.63332407,16634.0,16633.0,4.27055821]
[1672602017591,0.63332407,16634.0,16633.0,3.57055821]
[1672602017826,0.63332407,16634.0,16633.0,3.65015821]
[1672602018057,0.63332407,16634.0,16633.0,4.27055821]
[1672602018290,0.63332407,16634.0,16633.0,3.96995821]
[1672602018505,0.63332407,16634.0,16633.0,4.27055821]
[1672602021504,0.63332407,16634.0,16633.0,3.96995821]
[1672602021754,0.81389472,16634.0,16633.0,3.34955821]
[1672602025426,1.08436796,16634.0,16633.0,3.34955821]
[1672602025682,0.6332485,16634.0,16633.0,3.34955821]
[1672602026799,0.6332485,16634.0,16633.0,3.65015821]
[1672602029757,0.6332485,16634.0,16633.0,3.34955821]
[1672602029978,0.6332485,16634.0,16633.0,3.65015821]
[1672602031469,0.6332485,16634.0,16633.0,2.95015821]
[1672602032405,0.6332485,16634.0,16633.0,3.65015821]
[1672602032730,0.6332485,16634.0,16633.0,3.67480896]
[1672602032983,0.6332485,16634.0,16633.0,4.29520896]
[1672602033223,1.08436796,16634.0,16633.0,4.29520896]
[1672602033468,0.81389472,16634.0,16633.0,4.29520896]
[1672602036470,0.81389472,16634.0,16633.0,4.29509509]
[1672602037200,0.81389472,16634.0,16633.0,3.99449509]
[1672602037955,0.81389472,16634.0,16633.0,3.37409509]
[1672602038411,0.81389472,16634.0,16633.0,2.67409509]
[1672602039471,0.81379625,16634.0,16633.0,3.37409509]
[1672602039727,0.81379625,16634.0,16633.0,3.99449509]
[1672602040230,0.4529013,16634.0,16633.0,3.99449509]
[1672602040491,0.81380219,16634.0,16633.0,3.99449509]
[1672602042468,0.4529013,16634.0,16633.0,3.99449509]
[1672602043691,0.4529013,16634.0,16633.0,3.37409509]
[1672602044686,0.00178184,16634.0,16633.0,3.37409509]
[1672602044936,0.45297336,16634.0,16633.0,3.37409509]
[1672602045416,0.45297336,16634.0,16633.0,2.67409509]
[1672602047189,0.45297336,16634.0,16633.0,3.37409509]
[1672602047710,0.00178184,16634.0,16633.0,3.37409509]
[1672602047950,0.45305304,16634.0,16633.0,3.37409509]
[1672602048191,0.00178184,16634.0,16633.0,3.37409509]
[1672602048439,0.45305259,16634.0,16633.0,3.37409509]
[1672602050426,0.45305259,16634.0,16633.0,3.99449509]
[1672602052571,0.81408474,16634.0,16633.0,3.99449509]
[1672602052799,0.81408474,16634.0,16633.0,3.37409509]
[1672602056770,0.45305259,16634.0,16633.0,3.37409509]
[1672602056983,0.45305259,16634.0,16633.0,3.99449509]
[1672602057789,0.81407375,16634.0,16633.0,3.99449509]
[1672602058519,0.45305259,16634.0,16633.0,3.99449509]
[1672602059016,0.45305259,16634.0,16633.0,4.29509509]
[1672602060769,0.45305259,16634.0,16633.0,3.59509509]
[1672602061012,0.45305259,16634.0,16633.0,2.97469509]
[1672602061346,0.81407954,16634.0,16633.0,2.97469509]
[1672602061800,0.45305259,16634.0,16633.0,2.97469509]
[1672602061835,0.45305259,16634.0,16633.0,3.67469509]
[1672602062077,0.45305259,16634.0,16633.0,3.99449509]
[1672602062333,0.00178184,16634.0,16633.0,3.37409509]
[1672602063356,0.45308253,16634.0,16633.0,3.37409509]
[1672602063847,0.45308253,16634.0,16633.0,3.37398753]
[1672602064095,0.45308253,16634.0,16633.0,3.99438753]
[1672602066077,0.81413229,16634.0,16633.0,3.99438753]
[1672602066331,0.81413229,16634.0,16633.0,3.37398753]
[1672602070821,1.08489816,16634.0,16633.0,3.99438753]
[1672602071568,0.81413229,16634.0,16633.0,3.99438753]
[1672602071818,1.08489751,16634.0,16633.0,3.99438753]
[1672602072061,0.63359574,16634.0,16633.0,3.99438753]
[1672602073591,0.63359574,16634.0,16633.0,4.29497753]
[1672602076870,0.63359574,16634.0,16633.0,4.29498753]
[1672602078847,0.63359574,16634.0,16633.0,3.78772688]
[1672602079095,0.1822408,16634.0,16633.0,4.30797348]
[1672602079625,0.45300494,16634.0,16633.0,4.30797348]
[1672602080122,0.1822408,16634.0,16633.0,4.30797348]
[1672602081394,0.45300494,16634.0,16633.0,4.30797348]
[1672602082121,0.1822408,16634.0,16633.0,4.30797348]
[1672602082368,0.45300494,16634.0,16633.0,4.30797348]
[1672602082861,0.45300494,16634.0,16633.0,3.68757348]
[1672602083591,0.8140547,16634.0,16633.0,3.68757348]
[1672602084078,0.63359574,16634.0,16633.0,3.68757348]
[1672602085363,0.63359574,16634.0,16633.0,3.68746673]
[1672602092402,0.81413229,16634.0,16633.0,3.68746673]
[1672602092912,0.81413229,16634.0,16633.0,3.38686673]
[1672602093180,0.81413229,16634.0,16633.0,3.68746673]
[1672602094422,0.45308253,16634.0,16633.0,2.13166469]
[1672602094686,0.45246362,16634.0,16633.0,2.12316469]
[1672602101182,0.45246362,16634.0,16633.0,1.42316469]
[1672602101925,0.45246362,16634.0,16633.0,0.82195069]
[1672602102137,0.45246362,16634.0,16633.0,1.52195069]
[1672602104637,0.45246362,16634.0,16633.0,2.14235069]
[1672602109743,0.45246362,16634.0,16633.0,2.13839669]
[1672602110471,0.90317293,16634.0,16633.0,2.13839669]
[1672602110727,0.90317293,16634.0,16633.0,0.81799669]
[1672602111720,0.90317293,16634.0,16633.0,1.51799669]
[1672602115275,0.90317293,16634.0,16633.0,1.96145213]
[1672602115518,0.90317293,16634.0,16633.0,2.58185213]
[1672602117167,0.90317293,16634.0,16633.0,2.73961069]
[1672602117432,0.90317293,16634.0,16633.0,3.18306613]
[1672602117681,0.90317293,16634.0,16633.0,2.48306613]
[1672602117927,0.90317293,16634.0,16633.0,2.03961069]
[1672602118168,0.90317293,16634.0,16633.0,1.41921069]
[1672602118710,0.90317293,16634.0,16633.0,2.11921069]
[1672602118947,0.90317293,16634.0,16633.0,2.73961069]
[1672602119204,0.90317293,16634.0,16633.0,3.18306613]
[1672602120442,0.45246362,16634.0,16633.0,3.18306613]
[1672602120949,0.45246362,16634.0,16633.0,2.73961069]
[1672602121203,0.45246362,16634.0,16633.0,3.18306613]
[1672602123468,0.00178184,16634.0,16633.0,3.18306613]
[1672602123685,0.00178184,16634.0,16633.0,2.73961069]
[1672602124589,0.00178184,16634.0,16633.0,3.18306613]
[1672602124788,0.00178184,16634.0,16633.0,2.48306613]
[1672602125027,0.00178184,16634.0,16633.0,2.03961069]
[1672602125269,0.00178184,16634.0,16633.0,1.41921069]
[1672602125741,0.00178184,16634.0,16633.0,2.11921069]
[1672602126222,0.45272429,16634.0,16633.0,3.41193245]
[1672602126476,0.45272429,16634.0,16633.0,4.03233245]
[1672602128685,0.81352146,16634.0,16633.0,4.03233245]
[1672602129403,0.81352146,16634.0,16633.0,4.33294245]
[1672602131937,0.45272429,16634.0,16633.0,4.33294245]
[1672602132434,0.45272429,16634.0,16633.0,4.03233245]
[1672602133905,0.45272429,16634.0,16633.0,4.03225242]
[1672602134917,0.8136676,16634.0,16633.0,3.4829861]
[1672602135163,0.4529487,16634.0,16633.0,3.50125705]
[1672602135409,0.4529487,16634.0,16633.0,4.04419774]
[1672602137950,0.1822468,16634.0,16633.0,4.04419774]
[1672602140894,0.1822468,16634.0,16633.0,4.34478774]
[1672602141643,0.1822468,16634.0,16633.0,4.32651679]
[1672602142452,0.1822468,16634.0,16633.0,4.34478774]
[1672602143214,0.1822468,16634.0,16633.0,3.64478774]
[1672602143592,0.1822468,16634.0,16633.0,4.34478774]
[1672602146745,0.1822468,16634.0,16633.0,4.35328774]
[1672602147000,0.00178184,16634.0,16633.0,4.35328774]
[1672602147246,0.00178184,16634.0,16633.0,4.05269774]
[1672602147503,0.00178184,16634.0,16633.0,4.35326774]
[1672602149597,0.00178184,16634.0,16633.0,3.65326774]
[1672602150578,0.00178184,16634.0,16633.0,4.35326774]
[1672602153111,0.00178184,16634.0,16633.0,4.05269774]
[1672602153353,0.00178184,16634.0,16633.0,4.35327774]
[1672602155250,0.1822468,16634.0,16633.0,4.35327774]
[1672602156564,0.1822468,16634.0,16633.0,3.65327774]
[1672602157054,0.00178184,16634.0,16633.0,3.65327774]
[1672602157576,0.00178184,16634.0,16633.0,4.35327774]
[1672602160233,0.1822468,16634.0,16633.0,4.35319758]
[1672602160480,0.1822468,16634.0,16633.0,4.33492663]
[1672602161481,0.1822468,16634.0,16633.0,4.35319758]
[1672602164401,0.4529487,16634.0,16633.0,4.35319758]
[1672602166698,0.4529487,16634.0,16633.0,4.05261758]
[1672602166915,0.4529487,16634.0,16633.0,4.35319758]
[1672602169408,0.4529487,16634.0,16633.0,3.65319758]
[1672602169648,0.4529487,16634.0,16633.0,3.03279758]
[1672602170383,0.4529487,16634.0,16633.0,3.73279758]
[1672602170642,0.4529487,16634.0,16633.0,4.35319758]
[1672602171135,0.4529487,16634.0,16633.0,3.85319758]
[1672602171636,0.4529487,16634.0,16633.0,3.29348243]
[1672602172158,0.81389201,16634.0,16633.0,3.29348243]
[1672602172630,0.81389201,16634.0,16633.0,3.27521148]
[1672602173145,0.81389201,16634.0,16633.0,3.29348243]
[1672602173628,0.63342705,16634.0,16633.0,3.29348243]
[1672602174276,0.63342705,16634.0,16633.0,3.91388243]
[1672602176273,0.63342705,16634.0,16633.0,3.61330243]
[1672602176537,0.63342705,16634.0,16633.0,3.21388243]
[1672602176757,0.63342705,16634.0,16633.0,2.59348243]
[1672602177504,0.63342705,16634.0,16633.0,3.29348243]
[1672602177718,0.63342705,16634.0,16633.0,3.91388243]
[1672602177966,0.63342705,16634.0,16633.0,3.61330243]
[1672602178692,0.63342705,16634.0,16633.0,3.59503148]
[1672602179442,0.63342705,16634.0,16633.0,3.61330243]
[1672602179919,0.8136676,16634.0,16633.0,2.99290243]
[1672602180162,1.08447573,16634.0,16633.0,2.99290243]
[1672602181156,1.08447573,16634.0,16633.0,3.29349243]
[1672602181404,0.8136676,16634.0,16633.0,3.29349243]
[1672602181648,0.8136676,16634.0,16633.0,3.91389243]
[1672602182626,0.8136676,16634.0,16633.0,3.29349243]
[1672602183390,0.8136676,16634.0,16633.0,2.59349243]
[1672602183609,0.8136676,16634.0,16633.0,3.29349243]
[1672602184132,0.45272429,16634.0,16633.0,3.29349243]
[1672602184599,0.45272429,16634.0,16633.0,2.97463148]
[1672602184843,0.45272429,16634.0,16633.0,3.27522148]
[1672602185584,0.8137151,16634.0,16633.0,3.27522148]
[1672602188908,0.8137151,16634.0,16633.0,2.97463148]
[1672602189154,0.8137151,16634.0,16633.0,3.27522148]
[1672602189656,0.8137151,16634.0,16633.0,2.57522148]
[1672602190362,0.8137151,16634.0,16633.0,3.27522148]
[1672602190866,0.8137151,16634.0,16633.0,3.89562148]
[1672602191104,0.8087151,16634.0,16633.0,3.89562148]
[1672602191623,0.8087151,16634.0,16633.0,3.59503148]
[1672602191872,0.8087151,16634.0,16633.0,3.38109748]
[1672602192089,0.8087151,16634.0,16633.0,2.97463148]
[1672602193921,0.8087151,16634.0,16633.0,3.27522148]
[1672602194626,1.07939209,16634.0,16633.0,3.27522148]
[1672602194839,0.8087151,16634.0,16633.0,3.27522148]
[1672602195078,1.07939202,16634.0,16633.0,3.27522148]
[1672602195556,1.07939202,16634.0,16633.0,2.97463148]
[1672602195822,1.07939202,16634.0,16633.0,3.27522148]
[1672602196066,1.07939202,16634.0,16633.0,2.97463148]
[1672602196305,1.07939202,16634.0,16633.0,3.27522148]
[1672602199052,0.8087151,16634.0,16633.0,3.27522148]
[1672602200003,0.63167694,16634.0,16633.0,3.27522148]
[1672602201049,0.63167694,16634.0,16633.0,2.97463148]
[1672602201539,0.63167694,16634.0,16633.0,3.27522148]
[1672602202030,1.07940123,16634.0,16633.0,3.27522148]
[1672602202761,0.63167694,16634.0,16633.0,3.27522148]
[1672602202991,1.07940123,16634.0,16633.0,3.27522148]
[1672602203489,1.07942774,16634.0,16633.0,2.57522148]
[1672602204635,1.07942774,16634.0,16633.0,3.27522148]
[1672602205078,0.8087151,16634.0,16633.0,3.27522148]
[1672602205321,1.07942957,16634.0,16633.0,3.27522148]
[1672602205535,0.8087151,16634.0,16633.0,3.89562148]
[1672602207205,0.8087151,16634.0,16633.0,3.27522148]
[1672602208148,0.8087151,16634.0,16633.0,3.27521148]
[1672602209278,0.8087151,16634.0,16633.0,3.27609207]
[1672602210239,0.8087151,16634.0,16633.0,3.27610207]
[1672602210707,0.8087151,16634.0,16633.0,2.57610207]
[1672602211573,0.8087151,16634.0,16633.0,3.27610207]
[1672602213493,0.8087151,16634.0,16633.0,3.29437302]
[1672602214092,0.8087151,16634.0,16633.0,3.29430015]
[1672602215673,0.8087151,16634.0,16633.0,2.99371015]
[1672602215920,0.8087151,16634.0,16633.0,3.29430015]
[1672602216412,0.44772429,16634.0,16633.0,3.29430015]
[1672602216661,0.80876851,16634.0,16633.0,3.29430015]
[1672602217113,0.44772429,16634.0,16633.0,3.29430015]
[1672602217591,0.80877016,16634.0,16633.0,2.59430015]
[1672602218050,0.44772429,16634.0,16633.0,2.59430015]
[1672602218559,0.44772429,16634.0,16633.0,3.29430015]
[1672602219725,0.44772429,16634.0,16633.0,3.2760292]
[1672602220326,0.44772429,16634.0,16633.0,2.9754392]
[1672602220567,0.44772429,16634.0,16633.0,3.29430015]
[1672602224035,0.44772429,16634.0,16633.0,2.99371015]
[1672602224278,0.44772429,16634.0,16633.0,3.29430015]
[1672602224708,0.44772429,16634.0,16633.0,2.59430015]
[1672602225779,0.44772429,16634.0,16633.0,3.29430015]
[1672602230354,0.44772429,16634.0,16633.0,3.91470015]
[1672602231518,0.44772429,16634.0,16633.0,3.21470015]
[1672602231771,0.44772429,16634.0,16633.0,2.59430015]
[1672602232233,0.80879504,16634.0,16633.0,2.59430015]
[1672602232456,0.44772429,16634.0,16633.0,2.59430015]
[1672602232770,0.44772429,16634.0,16633.0,3.29430015]
[1672602233798,0.44772429,16634.0,16633.0,3.2760292]
[1672602234196,0.44772429,16634.0,16633.0,2.9754392]
[1672602234430,0.44772429,16634.0,16633.0,3.2760292]
[1672602236190,0.44772429,16634.0,16633.0,2.9754392]
[1672602236407,0.44772429,16634.0,16633.0,3.2760292]